lending/lending_fUSD_20241113
["ID","MTS","AMOUNT","RATE_DAILY","PERIOD"]
[342146413,1731508232058,-300.0,9.899e-05,2]
[342146414,1731508232067,-2821.50662374,9.9e-05,2]
[342146415,1731508232079,-4417.09121826,9.9e-05,2]
[342146416,1731508232089,-5033.5385378,9.992e-05,2]
[342146417,1731508232098,-224.6184432,9.992e-05,2]
[342146418,1731508232107,-255.13509942,9.999e-05,2]
[342146419,1731508232117,-150.0,9.999e-05,2]
[342146420,1731508232126,-53898.9754204,0.0001,2]
[342146421,1731508232145,-581.51629935,0.0001,2]
[342146422,1731508232156,-7881.91389389,0.0001,2]
[342146423,1731508232170,-8973.37856903,0.0001,2]
[342146424,1731508232221,-1798.59,0.0001,2]
[342146425,1731508232233,-164772.85113981,0.0001,2]
[342146426,1731508232254,-16890.453603,0.0001,2]
[342146427,1731508232265,-278273.91215702,0.0001,2]
[342146428,1731508232443,-817938.66292195,0.0001,2]
[342146429,1731508232453,-261207.75850019,0.0001,2]
[342146430,1731508232462,-37726.35702977,0.0001,2]
[342146431,1731508232472,-1000.0,0.0001,2]
[342146432,1731508232482,-1000.0,0.0001,2]
[342146433,1731508232492,-1000.0,0.0001,2]
[342146434,1731508232500,-315.719568,0.0001,2]
[342146435,1731508232509,-156.34097756,0.0001,2]
[342146436,1731508232519,-1000.0,0.0001,2]
[342146437,1731508232528,-1000.0,0.0001,2]
[342146438,1731508232537,-1000.0,0.0001,2]
[342146439,1731508232546,-1000.0,0.0001,2]
[342146440,1731508232557,-1000.0,0.0001,2]
[342146441,1731508232567,-1000.0,0.0001,2]
[342146442,1731508232577,-1000.0,0.0001,2]
[342146443,1731508232585,-1000.0,0.0001,2]
[342146444,1731508232594,-1000.0,0.0001,2]
[342146445,1731508232603,-1000.0,0.0001,2]
[342146446,1731508232612,-1000.0,0.0001,2]
[342146447,1731508232622,-1000.0,0.0001,2]
[342146448,1731508232631,-1000.0,0.0001,2]
[342146449,1731508232642,-1000.0,0.0001,2]
[342146450,1731508232651,-1000.0,0.0001,2]
[342146451,1731508232666,-1000.0,0.0001,2]
[342146452,1731508232675,-1000.0,0.0001,2]
[342146453,1731508232685,-1000.0,0.0001,2]
[342146454,1731508232694,-1000.0,0.0001,2]
[342146455,1731508232704,-1000.0,0.0001,2]
[342146456,1731508232713,-1000.0,0.0001,2]
[342146457,1731508232723,-1000.0,0.0001,2]
[342146458,1731508232732,-1000.0,0.0001,2]
[342146459,1731508232742,-1000.0,0.0001,2]
[342146460,1731508232751,-1000.0,0.0001,2]
[342146461,1731508232761,-1000.0,0.0001,2]
[342146462,1731508232771,-1000.0,0.0001,2]
[342146463,1731508232780,-1000.0,0.0001,2]
[342146464,1731508232790,-1000.0,0.0001,2]
[342146465,1731508232799,-1000.0,0.0001,2]
[342146466,1731508232808,-1000.0,0.0001,2]
[342146467,1731508232817,-1000.0,0.0001,2]
[342146468,1731508232826,-1000.0,0.0001,2]
[342146469,1731508232835,-571.49511305,0.0001,2]
[342146470,1731508232845,-1288.10668114,0.0001,2]
[342146471,1731508232854,-1288.10668114,0.0001,2]
[342146472,1731508232864,-1800.0,0.0001,3]
[342146473,1731508232873,-130450.35032398,0.0001,2]
[342146480,1731508237571,-1359.35717662,0.0001,2]
[342146481,1731508237606,-2107406.82034665,0.0001,2]
[342146482,1731508237642,-896.92998022,0.0001,2]
[342146483,1731508237655,-3230.0,0.0001,2]
[342146484,1731508237743,-5934.56876306,0.0001,2]
[342146485,1731508237755,-1325.15132792,0.0001,2]
[342146486,1731508238019,-1971.139,0.0001,2]
[342146487,1731508238030,-89685.00000005,0.0001,2]
[342146488,1731508238042,-7964.78976908,0.0001,2]
[342146490,1731508238053,-3695.20851958,0.0001,2]
[342146662,1731508239699,-705.705,0.0001,2]
[342146673,1731508239792,-53779.42159244,0.0001,2]
[342146676,1731508239804,-338.85606724,0.0001,2]
[342146678,1731508239819,-1291.40999999,0.0001,2]
[342146680,1731508239830,-26754.83810391,0.0001,2]
[342146684,1731508239852,-15172.80773722,0.0001,2]
[342146686,1731508239862,-647.32147784,0.0001,2]
[342146688,1731508239873,-22357.25,0.0001,2]
[342146690,1731508239886,-521.10200454,0.0001,2]
[342146692,1731508239896,-447.88,0.0001,2]
[342146695,1731508239908,-3765.685647,0.0001,2]
[342146960,1731508242553,-1847.1314996,0.0001,2]
[342146975,1731508242679,-48861.40171022,0.0001,2]
[342146977,1731508242691,-12620.70736967,0.0001,2]
[342146990,1731508242800,-174713.80453732,0.0001,2]
[342146992,1731508242812,-2702809.28581487,0.0001,2]
[342146994,1731508242823,-3386.51145826,0.0001,2]
[342147015,1731508243013,-112.62267184,0.0001,2]
[342147323,1731508247445,-112495.72788179,0.0001,2]
[342147324,1731508247461,-299.14711235,0.0001,2]
[342147325,1731508247473,-71809.67963778,0.0001,2]
[342147326,1731508247484,-4194.4449456,0.0001,2]
[342147327,1731508247519,-8974.1,0.0001,2]
[342147328,1731508247640,-4206.91596242,0.0001,2]
[342147329,1731508247652,-897.46,0.0001,2]
[342147331,1731508499855,-1000.0,0.00022,120]
[342147332,1731508516908,-1046.70345103,0.00022,120]
[342147333,1731508517424,-500.0,0.00022101,120]
[342147334,1731508517461,38406.07,0.000123,7]
[342147335,1731508525890,376.09,0.000123,7]
[342147336,1731508613449,-488.74,8.638e-05,2]
[342147337,1731508613471,-166.47,8.68e-05,2]
[342147338,1731508613513,-658.75,8.69e-05,2]
[342147339,1731508613552,-409.04,8.69e-05,2]
[342147340,1731508613590,-200.0,8.69e-05,2]
[342147341,1731508613626,-150.0,8.697e-05,2]
[342147342,1731508613667,-23900.0,8.698e-05,2]
[342147343,1731508613725,-1717.98,8.698e-05,2]
[342147344,1731508613765,-610.45082718,8.698e-05,2]
[342147345,1731508613807,-1000.0,8.725e-05,2]
[342147346,1731508613847,-1351.89,9.435e-05,2]
[342147347,1731508613879,-1351.89,9.437e-05,2]
[342147348,1731508613915,-1351.89,9.44e-05,2]
[342147349,1731508613970,-1351.89,9.442e-05,2]
[342147350,1731508614009,-1351.89,9.445e-05,2]
[342147351,1731508614045,-1351.89,9.447e-05,2]
[342147352,1731508614080,-1351.89,9.45e-05,2]
[342147353,1731508614115,-150.0,9.45e-05,2]
[342147354,1731508614150,-1351.89,9.452e-05,2]
[342147355,1731508614185,-1351.89,9.455e-05,2]
[342147356,1731508614230,-1351.89,9.457e-05,2]
[342147357,1731508614266,-1351.89,9.459e-05,2]
[342147358,1731508614301,-1351.89,9.462e-05,2]
[342147359,1731508614338,-1351.89,9.464e-05,2]
[342147360,1731508614376,-1351.89,9.467e-05,2]
[342147361,1731508614411,-1351.89,9.469e-05,2]
[342147362,1731508614456,-1351.89,9.472e-05,2]
[342147363,1731508614491,-1351.89,9.474e-05,2]
[342147364,1731508614525,-1351.89,9.477e-05,2]
[342147365,1731508614559,-1351.89,9.479e-05,2]
[342147366,1731508614593,-763.15,9.48e-05,2]
[342147367,1731508614627,-1351.89,9.482e-05,2]
[342147368,1731508614660,-255.0,9.566e-05,2]
[342147369,1731508614696,-362.32,9.612e-05,2]
[342147370,1731508614727,-362.32,9.612e-05,2]
[342147371,1731508614759,-362.32,9.712e-05,2]
[342147372,1731508614793,-409.04,9.776e-05,2]
[342147373,1731508614829,-400.0,9.8e-05,3]
[342147374,1731508614862,-922.8,9.814e-05,2]
[342147375,1731508614895,-1000.0,9.816e-05,2]
[342147376,1731508614926,-250.0,9.841e-05,2]
[342147377,1731508614961,-763.98,9.863e-05,2]
[342147378,1731508614992,-508.3190042,9.9e-05,2]
[342147379,1731508615026,-900.0,9.9e-05,3]
[342147380,1731508615059,-763.15,9.9e-05,2]
[342147381,1731508615093,-5488.37016862,9.9e-05,2]
[342147382,1731508654838,-1009.63017039,0.0002161,60]
[342147383,1731508766262,-250.0,9.394e-05,2]
[342147384,1731508766285,-18444.52,9.477e-05,2]
[342147385,1731508766307,-3134.98,9.8e-05,2]
[342147386,1731508766329,-173.424,9.8e-05,2]
[342147387,1731508766353,-150.0,9.8e-05,2]
[342147388,1731508766377,-17847.076,9.801e-05,2]
[342147389,1731508775135,-1400.0,0.0001,3]
[342147390,1731508802360,1096.49,0.00016658,30]
[342147393,1731509017913,1000.0,0.000165,27]
[342147394,1731509026368,-159.63,7.519e-05,2]
[342147395,1731509026391,-2878.89,8.219e-05,2]
[342147396,1731509026414,-2000.0,9.112e-05,2]
[342147397,1731509026436,-551.19,9.409e-05,2]
[342147398,1731509026457,-178.66,9.442e-05,2]
[342147399,1731509026484,-66990.0,9.703e-05,2]
[342147400,1731509026507,-763.15,9.71e-05,2]
[342147401,1731509026529,-763.15,9.81e-05,2]
[342147402,1731509026551,-880.23,9.81e-05,2]
[342147403,1731509026573,-150.0,9.899e-05,2]
[342147404,1731509026600,-2591.619,9.9e-05,2]
[342147405,1731509026621,-222.481,9.919e-05,2]
[342147406,1731509033847,500.0,0.00021942,120]
[342147409,1731509110348,-500.0,0.00023442,120]
[342147410,1731509110380,-500.0,0.00024942,120]
[342147411,1731509110409,-284.528382,0.00024942,120]
[342147412,1731509110444,-1019.20511913,0.00025,60]
[342147413,1731509110472,-1500.0,0.00025,120]
[342147414,1731509110499,-263.14747249,0.00025,120]
[342147415,1731509110526,-638.97440232,0.00025,120]
[342147416,1731509110554,-2000.0,0.00025124,120]
[342147417,1731509110581,-200.0,0.0002527,120]
[342147418,1731509110609,-500.0,0.00025353,120]
[342147419,1731509110635,-2000.0,0.00025654,120]
[342147420,1731509110660,-500.0,0.00025692,120]
[342147421,1731509110693,-200.0,0.00026102,120]
[342147422,1731509110720,-2000.0,0.00026185,120]
[342147423,1731509110747,-500.0,0.00026206,120]
[342147424,1731509110774,-500.0,0.00026442,120]
[342147425,1731509110802,-2000.0,0.00026715,120]
[342147426,1731509110828,-200.0,0.00026934,120]
[342147427,1731509110857,-2531.04535386,0.00027,60]
[342147428,1731509110883,-675.28550814,0.00027,120]
[342147429,1731509110910,-508.98546003,0.00027,120]
[342147430,1731509110945,-2042.94403354,0.00027,60]
[342147431,1731509110973,-2000.0,0.00027,120]
[342147432,1731509110998,-2392.42649091,0.00027,120]
[342147433,1731509111024,-523.0,0.00027,60]
[342147434,1731509135151,-500.0,9e-05,2]
[342147435,1731509135173,-496.0,9e-05,2]
[342147436,1731509135198,-161.65,9.388e-05,2]
[342147437,1731509135220,-161.65,9.4e-05,2]
[342147438,1731509135242,-125.43305449,9.412e-05,2]
[342147440,1731509300857,-200.0,9.03e-05,2]
[342147441,1731509300880,-1000.0,9.095e-05,2]
[342147442,1731509300904,-3135.0,9.1e-05,2]
[342147443,1731509301663,-150.0,9.1e-05,2]
[342147447,1731509301998,-150.0,9.1e-05,2]
[342147448,1731509302190,-150.0,9.1e-05,2]
[342147449,1731509302335,-150.0,9.1e-05,2]
[342147450,1731509302490,-150.0,9.1e-05,2]
[342147451,1731509302651,-150.0,9.1e-05,2]
[342147452,1731509302796,-150.0,9.1e-05,2]
[342147453,1731509303317,-150.0,9.1e-05,2]
[342147454,1731509303364,-150.0,9.1e-05,2]
[342147455,1731509303391,-150.0,9.1e-05,2]
[342147456,1731509303436,-150.0,9.1e-05,2]
[342147457,1731509303573,-150.0,9.1e-05,2]
[342147458,1731509303741,-150.0,9.1e-05,2]
[342147459,1731509303893,-150.0,9.1e-05,2]
[342147460,1731509304024,-150.0,9.1e-05,2]
[342147461,1731509304201,-150.0,9.1e-05,2]
[342147462,1731509304355,-150.0,9.1e-05,2]
[342147463,1731509304489,-150.0,9.1e-05,2]
[342147464,1731509304627,-150.0,9.1e-05,2]
[342147465,1731509304775,-150.0,9.1e-05,2]
[342147466,1731509304904,-150.0,9.1e-05,2]
[342147467,1731509305024,-150.0,9.1e-05,2]
[342147468,1731509305170,-150.0,9.1e-05,2]
[342147469,1731509305328,-150.0,9.1e-05,2]
[342147470,1731509305467,-150.0,9.1e-05,2]
[342147471,1731509305614,-150.0,9.1e-05,2]
[342147472,1731509305787,-150.0,9.1e-05,2]
[342147473,1731509305923,-150.0,9.1e-05,2]
[342147474,1731509306049,-150.0,9.1e-05,2]
[342147475,1731509306330,-150.0,9.1e-05,2]
[342147476,1731509306485,-150.0,9.1e-05,2]
[342147477,1731509306639,-150.0,9.1e-05,2]
[342147478,1731509307006,-150.0,9.1e-05,2]
[342147479,1731509307246,-150.0,9.1e-05,2]
[342147480,1731509307671,-150.0,9.1e-05,2]
[342147481,1731509312599,-150.0,9.1e-05,2]
[342147484,1731509350661,2127.0,0.00027,60]
[342147486,1731509362111,-300.0,9.099e-05,2]
[342147487,1731509362133,-15365.0,9.1e-05,2]
[342147488,1731509362155,-2128.2,9.111e-05,2]
[342147489,1731509362180,-511.13,9.122e-05,2]
[342147490,1731509362207,-500.0,9.162e-05,2]
[342147491,1731509362232,-36.21694551,9.412e-05,2]
[342147492,1731509362254,-250.0,9.412e-05,2]
[342147493,1731509362278,-161.65,9.423e-05,2]
[342147494,1731509362301,-763.15,9.43e-05,2]
[342147495,1731509362325,-161.65,9.435e-05,2]
[342147496,1731509362354,-362.32,9.44e-05,2]
[342147497,1731509362378,-474.61,9.67e-05,2]
[342147498,1731509362401,-11095.91,9.67e-05,2]
[342147499,1731509362423,-785.76,9.67e-05,2]
[342147500,1731509362445,-1100.0,9.8e-05,3]
[342147501,1731509362467,-4582.0,9.801e-05,2]
[342147502,1731509362490,-2300.0,9.9e-05,3]
[342147503,1731509362512,-500.0,9.919e-05,2]
[342147504,1731509362534,-500.0,9.92e-05,2]
[342147505,1731509362556,-500.0,9.92e-05,2]
[342147506,1731509362580,-150.0,9.92e-05,2]
[342147507,1731509363006,-178.17,9.942e-05,2]
[342147508,1731509363057,-1107.67,9.95e-05,2]
[342147509,1731509363080,-1229.92,9.98e-05,2]
[342147510,1731509363106,-1000.0,9.999e-05,2]
[342147511,1731509363127,-150.0,9.999e-05,2]
[342147512,1731509363151,-24563.2612433,0.0001,2]
[342147513,1731509369095,-166.21,9.366e-05,2]
[342147514,1731509371110,-84886.29856,0.0001,2]
[342147516,1731509397104,250.0,9.357e-05,2]
[342147528,1731509431784,-2328.1741,9.9e-05,2]
[342147529,1731509431793,-24841.60100035,9.99e-05,2]
[342147530,1731509431804,-2036.24436,9.99e-05,2]
[342147531,1731509431816,-6820.16870115,9.99e-05,2]
[342147532,1731509431827,-16200.90206052,9.99e-05,2]
[342147533,1731509431837,-300.0,9.999e-05,2]
[342147534,1731509431848,-26164.87950765,0.0001,2]
[342147535,1731509431863,-3921.54099761,0.0001,2]
[342147536,1731509431874,-4109.68893146,0.0001,2]
[342147537,1731509431886,-280.1371,0.0001,2]
[342147538,1731509431897,-10610.15619135,0.0001,2]
[342147539,1731509431909,-80789.78087863,0.0001,2]
[342147540,1731509431923,-793248.27043654,0.0001,2]
[342147541,1731509431948,-7220.18897332,0.0001,2]
[342147542,1731509431959,-40763.90861706,0.0001,2]
[342147543,1731509431971,-1014.16252327,0.0001,2]
[342147544,1731509432028,-2175.6275,0.0001,2]
[342147545,1731509432040,-380.51205394,0.0001,2]
[342147546,1731509432052,-6040.0000001,0.0001,2]
[342147547,1731509432477,-4197.73932476,0.0001,2]
[342147548,1731509432504,-2039.8008804,0.0001,2]
[342147549,1731509432516,-451160.00000002,0.0001,2]
[342147550,1731509432528,-9054.0,0.0001,2]
[342147555,1731509434938,-991.27121978,0.0001,2]
[342147560,1731509437777,-975.6867398,0.0001,2]
[342147561,1731509437789,-2720.22,0.0001,2]
[342147562,1731509437801,-1107.1406616,0.0001,2]
[342147563,1731509437817,-108169.59999995,0.0001,2]
[342147564,1731509437829,-1637.03999997,0.0001,2]
[342147705,1731509439587,-794.85875,0.0001,2]
[342147707,1731509439600,-439.7958925,0.0001,2]
[342147711,1731509439616,-2555.47426637,0.0001,2]
[342147714,1731509439627,-1991.67696849,0.0001,2]
[342147717,1731509439638,-7346.96261582,0.0001,2]
[342147741,1731509439740,-1740.18243724,0.0001,2]
[342147748,1731509439763,-1968.81187577,0.0001,2]
[342147751,1731509439784,-3294.60981085,0.0001,2]
[342147758,1731509439836,-0.80466921,0.0001,2]
[342147760,1731509439847,-902.3,0.0001,2]
[342147762,1731509439862,-118550.90156995,0.0001,2]
[342147765,1731509439872,-901.41787863,0.0001,2]
[342147767,1731509439882,-873.4587,0.0001,2]
[342147769,1731509439891,-296.75784033,0.0001,2]
[342147771,1731509439901,-186.30225704,0.0001,2]
[342147773,1731509439910,-546.92184914,0.0001,2]
[342147775,1731509439919,-546.92184914,0.0001,2]
[342147777,1731509439933,-12864.123,0.0001,2]
[342147779,1731509439945,-3500.0,0.0001,3]
[342147781,1731509439955,-2213.68985618,0.0001,2]
[342147783,1731509439964,-3000.0,0.0001,2]
[342147785,1731509439973,-3000.0,0.0001,2]
[342147787,1731509439983,-3000.0,0.0001,2]
[342147789,1731509439992,-3000.0,0.0001,2]
[342147791,1731509440001,-3000.0,0.0001,2]
[342147793,1731509440011,-3000.0,0.0001,2]
[342147795,1731509440020,-498.74,0.0001,2]
[342147797,1731509440030,-967.64,0.00010082,2]
[342147799,1731509440039,-3000.0,0.0001012,2]
[342147801,1731509440048,-166.21,0.00010146,2]
[342147803,1731509440057,-563.55,0.00010158,2]
[342147805,1731509440067,-563.55,0.00010161,2]
[342147807,1731509440076,-563.55,0.00010164,2]
[342147809,1731509440086,-352.7,0.00010164,2]
[342147811,1731509440095,-150.99,0.00010164,2]
[342147813,1731509440105,-20191.87,0.00010164,2]
[342147815,1731509440115,-1977.44,0.00010164,2]
[342147817,1731509440124,-329.0,0.00010164,2]
[342147819,1731509440133,-499.99,0.00010164,2]
[342147821,1731509440142,-443.46,0.00010164,2]
[342147823,1731509440152,-952.23,0.00010164,2]
[342147825,1731509440166,-299.99,0.00010166,2]
[342147827,1731509440175,-563.55,0.00010166,2]
[342147830,1731509440187,-563.55,0.00010169,2]
[342147832,1731509440196,-563.55,0.00010172,2]
[342147834,1731509440206,-563.55,0.00010175,2]
[342147836,1731509440215,-563.55,0.00010177,2]
[342147838,1731509440225,-563.55,0.0001018,2]
[342147840,1731509440234,-563.55,0.00010183,2]
[342147842,1731509440243,-563.55,0.00010185,2]
[342147844,1731509440253,-563.55,0.00010188,2]
[342147846,1731509440262,-563.55,0.00010191,2]
[342147848,1731509440271,-563.55,0.00010193,2]
[342147850,1731509440281,-563.55,0.00010196,2]
[342147852,1731509440291,-563.55,0.00010199,2]
[342147854,1731509440300,-756.33,0.000102,2]
[342147856,1731509440310,-563.55,0.00010201,2]
[342147858,1731509440319,-563.55,0.00010204,2]
[342147860,1731509440330,-563.55,0.00010207,2]
[342147862,1731509440339,-563.55,0.00010209,2]
[342147864,1731509440349,-432.63,0.00010219,2]
[342147866,1731509440359,-763.15,0.00010219,2]
[342147868,1731509440369,-178.66,0.00010222,2]
[342147870,1731509440379,-1000.0,0.00010232,2]
[342147872,1731509440389,-155.34,0.00010254,2]
[342147874,1731509440399,-406.32105669,0.00010259,2]
[342147876,1731509440409,-511.13,0.00010263,2]
[342147878,1731509440418,-967.64,0.000103,2]
[342147879,1731509440430,-296.75784033,0.000104,2]
[342147882,1731509440439,-3000.0,0.0001043,2]
[342147884,1731509440449,-2878.89,0.00010444,2]
[342147886,1731509440458,-865.16,0.000105,2]
[342147888,1731509440468,-763.15,0.000105,2]
[342147890,1731509440477,-300.0,0.000105,2]
[342147892,1731509440486,-159.73,0.000105,2]
[342147894,1731509440495,-150.0,0.000105,2]
[342147896,1731509440505,-150.0,0.000105,2]
[342147898,1731509440515,-500.0,0.00010533,2]
[342147900,1731509440525,-500.0,0.00010533,2]
[342147902,1731509440534,-498.64183754,0.00010533,2]
[342147903,1731509440544,-171.40525016,0.00010533,2]
[342147904,1731509440553,-153.76713274,0.00010533,2]
[342147905,1731509440563,-500.0,0.00010533,2]
[342147906,1731509440572,-160.47640634,0.00010533,2]
[342147907,1731509440582,-150.0,0.00010534,2]
[342147908,1731509440597,-500.34081253,0.0001055,2]
[342147909,1731509440610,-150.0,0.00010634,2]
[342147910,1731509440623,-3000.0,0.0001075,2]
[342147911,1731509440634,-795.0,0.00010795,2]
[342147912,1731509440648,-977.71759158,0.000108,2]
[342147913,1731509440657,-176021.0,0.00010849,2]
[342147914,1731509440667,-409.04,0.00010862,2]
[342147915,1731509440677,-296.75784033,0.000109,2]
[342147916,1731509440689,-1002.60244827,0.000109,2]
[342147917,1731509440699,-1002.60244822,0.000109,2]
[342147918,1731509440708,-1002.60244822,0.000109,2]
[342147920,1731509440718,-150.0,0.00010904,2]
[342147922,1731509440728,-967.64,0.00010904,2]
[342147923,1731509440737,-967.64,0.00010904,2]
[342147925,1731509440748,-150.0,0.00010904,2]
[342147927,1731509440757,-302.32,0.00010904,2]
[342147929,1731509440766,-166.21,0.00010927,2]
[342147931,1731509440777,-155.0,0.00010942,2]
[342147933,1731509440786,-222.0,0.00010942,2]
[342147935,1731509440796,-173.62171602,0.00010958,2]
[342147937,1731509440806,-500.0,0.00010958,2]
[342147940,1731509440815,-500.0,0.00010958,2]
[342147942,1731509440824,-500.0,0.00010958,2]
[342147944,1731509440834,-605.50821952,0.00010958,2]
[342147945,1731509440844,-358.4092915,0.00010958,2]
[342147947,1731509440853,-396.46490842,0.00010958,2]
[342147949,1731509440863,-258.30000001,0.00010958,2]
[342147951,1731509440872,-500.0,0.00010958,2]
[342147953,1731509440882,-500.0,0.00010958,2]
[342147956,1731509440892,-500.0,0.00010958,2]
[342147958,1731509440901,-450.3106647,0.00010958,2]
[342147960,1731509440911,-500.0,0.00010958,2]
[342147962,1731509440920,-500.0,0.00010958,2]
[342147964,1731509440931,-500.0,0.00010958,2]
[342147966,1731509440940,-500.0,0.00010958,2]
[342147968,1731509440950,-500.0,0.00010958,2]
[342147970,1731509440959,-250.00000001,0.00010958,2]
[342147972,1731509440968,-432.64941463,0.00010958,2]
[342147974,1731509440977,-500.0,0.00010958,2]
[342147975,1731509440987,-351.78372561,0.00010958,2]
[342147978,1731509440996,-500.0,0.00010958,2]
[342147980,1731509441005,-500.0,0.00010958,2]
[342147982,1731509441015,-210.51101574,0.00010958,2]
[342147984,1731509441025,-500.0,0.00010958,2]
[342147986,1731509441035,-416.44843035,0.00010958,2]
[342147988,1731509441045,-180.38947679,0.00010958,2]
[342147990,1731509441054,-500.0,0.00010958,2]
[342147992,1731509441065,-500.0,0.00010958,2]
[342147994,1731509441074,-500.0,0.00010958,2]
[342147996,1731509441084,-595.49613373,0.00010958,2]
[342147998,1731509441093,-1375.0,0.00010958,2]
[342148000,1731509441102,-200.0,0.00010959,2]
[342148002,1731509441112,-200.0,0.00010959,2]
[342148004,1731509441122,-200.0,0.00010959,2]
[342148006,1731509441130,-200.0,0.00010959,2]
[342148008,1731509441140,-13139.0,0.00010959,2]
[342148010,1731509441150,-3304.65,0.00010959,2]
[342148012,1731509441159,-150.0,0.00010959,2]
[342148014,1731509441169,-13908.72,0.00010959,2]
[342148016,1731509441182,-1921.81886738,0.00010959,2]
[342148018,1731509441197,-3000.46113262,0.00010959,2]
[342148020,1731509441207,-250.0,0.00010959,2]
[342148022,1731509441217,-1500.0,0.00010959,2]
[342148024,1731509441227,-305.62,0.00010959,2]
[342148026,1731509441237,-255.0,0.00010999,2]
[342148028,1731509441247,-178.66,0.00011001,2]
[342148030,1731509441257,-3000.0,0.0001106,2]
[342148032,1731509441266,-500.0,0.00011081,2]
[342148034,1731509441276,-1000.0,0.00011081,2]
[342148036,1731509441286,-155.0,0.0001109,2]
[342148038,1731509441296,-155.34,0.00011101,2]
[342148040,1731509441306,-222.0,0.00011117,2]
[342148042,1731509441316,-1002.60244822,0.00011186,2]
[342148044,1731509441325,-255.0,0.00011245,2]
[342148047,1731509441335,-1000.0,0.00011369,2]
[342148049,1731509441345,-3000.0,0.0001138,2]
[342148051,1731509441355,-296.75784033,0.000114,2]
[342148052,1731509441365,-511.13,0.00011403,2]
[342148055,1731509441375,-150.01226342,0.00011449,5]
[342148056,1731509441384,-3304.65,0.00011507,2]
[342148059,1731509441394,-1002.60244822,0.00011614,2]
[342148061,1731509441403,-1006.0,0.000117,2]
[342148063,1731509441414,-1000.0,0.000117,2]
[342148065,1731509441423,-1000.0,0.000117,2]
[342148067,1731509441438,-166.21,0.00011707,2]
[342148069,1731509441448,-1000.0,0.000118,2]
[342148071,1731509441458,-1000.0,0.000118,2]
[342148073,1731509441468,-1624.0,0.000118,2]
[342148075,1731509441477,-446.0,0.0001189,2]
[342148077,1731509441487,-296.75784033,0.000119,2]
[342148079,1731509441497,-1000.0,0.000119,2]
[342148081,1731509441507,-1000.0,0.000119,2]
[342148083,1731509441517,-4700.0,0.000119,4]
[342148085,1731509441527,-155.34,0.00011947,2]
[342148087,1731509441536,-409.04,0.00011948,2]
[342148089,1731509441546,-500.0,0.00011999,2]
[342148091,1731509441556,-500.0,0.00011999,2]
[342148093,1731509441566,-500.0,0.00011999,2]
[342148095,1731509441576,-500.0,0.00011999,2]
[342148097,1731509441586,-500.0,0.00011999,2]
[342148099,1731509441602,-500.0,0.00011999,2]
[342148101,1731509441611,-500.0,0.00011999,2]
[342148103,1731509441620,-462.1339912,0.00011999,2]
[342148105,1731509441630,-250.0,0.00012,2]
[342148108,1731509441641,-126774.78099781,0.00012,2]
[342148109,1731509441651,-375.07871249,0.00012,2]
[342148112,1731509441660,-1450.0,0.00012,2]
[342148114,1731509441670,-1000.0,0.00012,2]
[342148116,1731509441682,-227.26,0.00012033,2]
[342148118,1731509441692,-1002.60244822,0.00012043,2]
[342148120,1731509441702,-3304.65,0.00012055,2]
[342148122,1731509441712,-30412.7,0.00012055,2]
[342148124,1731509441722,-433.0,0.00012099,2]
[342148126,1731509441731,-487.092,0.00012298,2]
[342148128,1731509441740,-1335.631,0.00012298,2]
[342148130,1731509441750,-2008.103,0.00012298,2]